[Event "IITU Masters 2019"]
[Site "Almaty"]
[Date "2019.02.20"]
[Round "1.1"]
[White "Daurimbetov, A."]
[Black "Markov, Mikhail"]
[Result "0-1"]
[ECO "B53"]
[WhiteElo "2287"]
[BlackElo "2368"]
[Annotator "NA"]
[PlyCount "200"]
[EventDate "2019.02.20"]
[EventType "tourn"]
[EventCountry "KAZ"]
[SourceTitle "playchess.com"]
[Source "ChessBase"]
[SourceQuality "1"]
[TimeControl "5400+30"]

1. e4 {[%emt 0:00:00]} c5 {[%emt 0:00:00]} 2. Nf3 {[%emt 0:00:00]} d6 {[%emt 0:00:00]} 3. d4 {[%emt 0:00:00]} cxd4 {[%emt 0:00:00]} 4. Qxd4 {[%emt 0:00:04]} a6 {[%emt 0:00:59]} 5. Be3 {[%emt 0:01:59]} Nc6 {[%emt 0:01:53]} 6. Qd2 {[%emt 0:00:56]} Nf6 {[%emt 0:02:40]} 7. Nc3 {[%emt 0:00:07]} e5 {[%emt 0:05:34]} 8. O-O-O {[%emt 0:04:35]} b5 {[%emt 0:02:02]} 9. Bg5 {[%emt 0:00:59]} Be6 {[%emt 0:10:52]} 10. Kb1 {[%emt 0:04:52]} Rb8 {[%emt 0:17:41]} 11. h3 {[%emt 0:10:58]} h6 {[%emt 0:09:59]} 12. Bxf6 {[%emt 0:00:33]} Qxf6 {[%emt 0:00:04]} 13. Nh2 {[%emt 0:08:07]} Qd8 {[%emt 0:03:47]} 14. Ng4 {[%emt 0:01:09]} Nd4 {[%emt 0:00:55]} 15. Ne3 {[%emt 0:01:51]} Be7 {[%emt 0:02:22]} 16. Ncd5 {[%emt 0:03:12]} O-O {[%emt 0:07:33]} 17. c3 {[%emt 0:03:31]} Nc6 {[%emt 0:00:19]} 18. Nxe7+ {[%emt 0:12:25]} Qxe7 {[%emt 0:00:14]} 19. Qxd6 {[%emt 0:00:35]} Qb7 {[%emt 0:00:35]} 20. Nd5 {[%emt 0:09:07]} Kh8 {[%emt 0:09:07]} 21. Be2 {[%emt 0:04:46]} a5 {[%emt 0:08:12]} 22. Rd2 {[%emt 0:02:50]} Rbc8 {[%emt 0:02:17]} 23. Rc1 {[%emt 0:08:01]} b4 {[%emt 0:03:33]} 24. Qc5 {[%emt 0:06:43]} bxc3 {[%emt 0:01:45]} 25. Nxc3 {[%emt 0:01:20]} Nb4 {[%emt 0:01:48]} 26. Qb5 {[%emt 0:04:28]} Qxe4+ {[%emt 0:00:55]} 27. Ka1 {[%emt 0:02:09]} Nxa2 {[%emt 0:00:15]} 28. Nxa2 {[%emt 0:01:44]} Bxa2 {[%emt 0:00:04]} 29. Rcd1 {[%emt 0:01:11]} Be6 {[%emt 0:00:38]} 30. Bf3 {[%emt 0:01:13]} Qf4 {[%emt 0:00:53]} 31. Bd5 {[%emt 0:01:29]} Rb8 {[%emt 0:01:10]} 32. Qd3 {[%emt 0:02:17]} Rfd8 {[%emt 0:03:38]} 33. Qe4 {[%emt 0:00:33]} Qg5 {[%emt 0:01:36]} 34. h4 {[%emt 0:00:25]} Qf6 {[%emt 0:00:35]} 35. Bxe6 {[%emt 0:00:21]} Rxd2 {[%emt 0:00:04]} 36. Rxd2 {[%emt 0:00:06]} Qxe6 {[%emt 0:00:03]} 37. Rd5 {[%emt 0:00:32]} f6 {[%emt 0:00:42]} 38. h5 {[%emt 0:02:29]} a4 {[%emt 0:00:23]} 39. Qc4 {[%emt 0:00:42]} Qb6 {[%emt 0:00:26]} 40. Rd2 {[%emt 0:00:02]} a3 {[%emt 0:00:31]} 41. b3 {[%emt 0:00:25]} Qa5 {[%emt 0:01:01]} 42. Rc2 {[%emt 0:00:43]} a2 {[%emt 0:01:11]} 43. Qc3 {[%emt 0:01:06]} Qa3 {[%emt 0:00:52]} 44. Rb2 {[%emt 0:00:20]} Qa6 {[%emt 0:01:00]} 45. Qc4 {[%emt 0:00:35]} Qa8 {[%emt 0:00:49]} 46. f3 {[%emt 0:00:46]} Rc8 {[%emt 0:00:18]} 47. Rxa2 {[%emt 0:00:02]} Qb7 {[%emt 0:00:22]} 48. Qd3 {[%emt 0:00:38]} Qb4 {[%emt 0:00:11]} 49. Rc2 {[%emt 0:00:40]} Qa3+ {[%emt 0:00:10]} 50. Kb1 {[%emt 0:00:07]} Ra8 {[%emt 0:00:04]} 51. Qc3 {[%emt 0:00:23]} f5 {[%emt 0:01:39]} 52. Qb2 {[%emt 0:01:07]} Qd6 {[%emt 0:00:32]} 53. Rd2 {[%emt 0:00:14]} Qc5 {[%emt 0:00:13]} 54. Rc2 {[%emt 0:00:25]} Qb5 {[%emt 0:00:35]} 55. Rc4 {[%emt 0:00:50]} e4 {[%emt 0:00:18]} 56. Qc3 {[%emt 0:00:30]} Rd8 {[%emt 0:02:04]} 57. Rc8 {[%emt 0:00:44]} Qf1+ {[%emt 0:00:28]} 58. Qc1 {[%emt 0:00:05]} Qxc1+ {[%emt 0:00:33]} 59. Rxc1 {[%emt 0:00:01]} exf3 {[%emt 0:00:14]} 60. gxf3 {[%emt 0:00:01]} Rd3 {[%emt 0:00:04]} 61. Kb2 {[%emt 0:00:19]} Rxf3 {[%emt 0:00:03]} 62. b4 {[%emt 0:00:02]} Re3 {[%emt 0:00:56]} 63. Rc5 {[%emt 0:00:44]} f4 {[%emt 0:00:57]} 64. b5 {[%emt 0:01:08]} f3 {[%emt 0:00:11]} 65. Rf5 {[%emt 0:00:21]} f2 {[%emt 0:00:29]} 66. Rxf2 {[%emt 0:00:52]} Re5 {[%emt 0:00:01]} 67. Kc3 {[%emt 0:00:22]} Rxb5 {[%emt 0:00:12]} 68. Rh2 {[%emt 0:00:08]} Rd5 {[%emt 0:00:08]} 69. Kc4 {[%emt 0:00:02]} Rd1 {[%emt 0:00:08]} 70. Rh4 {[%emt 0:00:39]} Kg8 {[%emt 0:00:08]} 71. Rh2 {[%emt 0:00:19]} Kf7 {[%emt 0:00:04]} 72. Rf2+ {[%emt 0:00:13]} Ke6 {[%emt 0:00:42]} 73. Rg2 {[%emt 0:01:24]} Kf6 {[%emt 0:00:05]} 74. Rg6+ {[%emt 0:00:20]} Kf7 {[%emt 0:00:05]} 75. Rg2 {[%emt 0:00:05]} Rh1 {[%emt 0:00:48]} 76. Rf2+ {[%emt 0:00:03]} Ke6 {[%emt 0:00:30]} 77. Re2+ {[%emt 0:01:23]} Kf5 {[%emt 0:00:12]} 78. Rf2+ {[%emt 0:00:06]} Ke4 {[%emt 0:01:21]} 79. Rg2 {[%emt 0:01:33]} Rc1+ {[%emt 0:00:07]} 80. Kb5 {[%emt 0:00:11]} Rc7 {[%emt 0:00:32]} 81. Kb6 {[%emt 0:00:02]} Rf7 {[%emt 0:00:10]} 82. Kc6 {[%emt 0:00:45]} Rf5 {[%emt 0:00:07]} 83. Rxg7 {[%emt 0:00:08]} Rxh5 {[%emt 0:00:03]} 84. Rg6 {[%emt 0:02:06]} Kf4 {[%emt 0:00:16]} 85. Kd6 {[%emt 0:00:15]} Ra5 {[%emt 0:00:05]} 86. Rg8 {[%emt 0:00:48]} h5 {[%emt 0:00:05]} 87. Rb8 {[%emt 0:00:31]} h4 {[%emt 0:00:27]} 88. Rb4+ {[%emt 0:00:02]} Kg5 {[%emt 0:00:04]} 89. Rb3 {[%emt 0:00:07]} Kg4 {[%emt 0:00:49]} 90. Rb4+ {[%emt 0:00:02]} Kh5 {[%emt 0:00:05]} 91. Rb3 {[%emt 0:00:05]} Rg5 {[%emt 0:00:14]} 92. Ke6 {[%emt 0:00:30]} Rg3 {[%emt 0:00:27]} 93. Rb8 {[%emt 0:00:21]} Kg4 {[%emt 0:00:23]} 94. Rb4+ {[%emt 0:01:16]} Kh5 {[%emt 0:01:35]} 95. Rb5+ {[%emt 0:00:04]} Rg5 {[%emt 0:00:10]} 96. Rb3 {[%emt 0:00:18]} Kg6 {[%emt 0:00:32]} 97. Rb8 {[%emt 0:02:18]} h3 {[%emt 0:01:05]} 98. Rg8+ {[%emt 0:00:24]} Kh5 {[%emt 0:00:05]} 99. Ra8 {[%emt 0:00:05]} Rg6+ {[%emt 0:00:54]} 100. Kf5 {[%emt 0:00:02]} h2 0-1

[Event "IITU Masters 2019"]
[Site "Almaty"]
[Date "2019.02.20"]
[Round "1.4"]
[White "Zhalmakhanov, Ramazan"]
[Black "Tologontegin, Semetey"]
[Result "1/2-1/2"]
[ECO "C00"]
[WhiteElo "2324"]
[BlackElo "2372"]
[Annotator "NA"]
[PlyCount "101"]
[EventDate "2019.02.20"]
[EventType "tourn"]
[EventCountry "KAZ"]
[SourceTitle "playchess.com"]
[Source "ChessBase"]
[SourceQuality "1"]
[TimeControl "5400+30"]

1. e4 {[%emt 0:00:00]} e6 {[%emt 0:00:00]} 2. d4 {[%emt 0:00:00]} b6 {[%emt 0:00:00]} 3. Nf3 {[%emt 0:01:48]} Bb7 {[%emt 0:00:02]} 4. Bd3 {[%emt 0:00:15]} d6 {[%emt 0:00:23]} 5. O-O {[%emt 0:03:08]} Nd7 {[%emt 0:00:39]} 6. c3 {[%emt 0:06:08]} g6 {[%emt 0:01:15]} 7. Nbd2 {[%emt 0:00:20]} Bg7 {[%emt 0:00:24]} 8. Re1 {[%emt 0:01:00]} Ne7 {[%emt 0:00:36]} 9. Nf1 {[%emt 0:01:59]} O-O {[%emt 0:01:25]} 10. Ng3 {[%emt 0:00:19]} h6 {[%emt 0:19:04]} 11. Bc2 {[%emt 0:15:22]} Kh7 {[%emt 0:05:04]} 12. h4 {[%emt 0:04:50]} e5 {[%emt 0:00:47]} 13. h5 {[%emt 0:03:02]} Nc6 {[%emt 0:07:10]} 14. Be3 {[%emt 0:05:46]} Nf6 {[%emt 0:08:56]} 15. dxe5 {[%emt 0:04:29]} dxe5 {[%emt 0:00:19]} 16. hxg6+ {[%emt 0:04:35]} fxg6 {[%emt 0:00:12]} 17. Qxd8 {[%emt 0:00:43]} Raxd8 {[%emt 0:07:54]} 18. Rad1 {[%emt 0:04:44]} Ng4 {[%emt 0:03:19]} 19. Bc1 {[%emt 0:00:56]} Bc8 {[%emt 0:05:05]} 20. Rxd8 {[%emt 0:03:42]} Nxd8 {[%emt 0:17:15]} 21. Rd1 {[%emt 0:04:37]} Ne6 {[%emt 0:04:58]} 22. Ba4 {[%emt 0:05:23]} Bf6 {[%emt 0:05:29]} 23. Nh2 {[%emt 0:15:53]} Nc5 {[%emt 0:06:47]} 24. Bc2 {[%emt 0:03:15]} Nxh2 {[%emt 0:01:10]} 25. Kxh2 {[%emt 0:00:08]} Be7 {[%emt 0:01:14]} 26. f3 {[%emt 0:01:06]} h5 {[%emt 0:01:50]} 27. Nf1 {[%emt 0:00:47]} Rd8 {[%emt 0:00:50]} 28. Rxd8 {[%emt 0:01:08]} Bxd8 {[%emt 0:00:03]} 29. Be3 {[%emt 0:02:21]} Ne6 {[%emt 0:00:16]} 30. Nd2 {[%emt 0:00:13]} c6 {[%emt 0:00:14]} 31. g3 {[%emt 0:01:12]} Bc7 {[%emt 0:00:14]} 32. Bb3 {[%emt 0:01:19]} Kg7 {[%emt 0:00:18]} 33. a4 {[%emt 0:03:50]} Kf6 {[%emt 0:00:57]} 34. Bd1 {[%emt 0:00:25]} g5 {[%emt 0:01:21]} 35. Be2 {[%emt 0:00:17]} h4 {[%emt 0:00:15]} 36. Bf1 {[%emt 0:00:44]} Ng7 {[%emt 0:01:33]} 37. Bh3 {[%emt 0:01:06]} hxg3+ {[%emt 0:00:34]} 38. Kxg3 {[%emt 0:00:03]} Nh5+ {[%emt 0:00:18]} 39. Kh2 {[%emt 0:00:03]} Ba6 {[%emt 0:00:36]} 40. Bd7 {[%emt 0:00:15]} c5 {[%emt 0:00:24]} 41. Kh3 {[%emt 0:00:36]} Be2 {[%emt 0:00:16]} 42. Bb5 {[%emt 0:01:15]} Bd1 {[%emt 0:00:06]} 43. Kg4 {[%emt 0:00:54]} Nf4 {[%emt 0:00:05]} 44. Nf1 {[%emt 0:00:14]} a6 {[%emt 0:00:31]} 45. Bxa6 {[%emt 0:00:22]} Bxa4 {[%emt 0:00:04]} 46. Bc8 {[%emt 0:00:11]} Be8 {[%emt 0:00:46]} 47. Ng3 {[%emt 0:00:45]} Bf7 {[%emt 0:01:07]} 48. Bd7 {[%emt 0:00:55]} Bg6 {[%emt 0:00:27]} 49. Bf5 {[%emt 0:01:07]} Be8 {[%emt 0:00:47]} 50. Bc8 {[%emt 0:00:32]} Bf7 {[%emt 0:00:17]} 51. Bd7 {[%emt 0:00:15]} 1/2-1/2

[Event "IITU Masters 2019"]
[Site "Almaty"]
[Date "2019.02.21"]
[Round "2.1"]
[White "Markov, Mikhail"]
[Black "Zubarev, Alexander"]
[Result "1/2-1/2"]
[ECO "D02"]
[WhiteElo "2368"]
[BlackElo "2494"]
[Annotator "ChessBase"]
[PlyCount "59"]
[EventDate "2019.02.20"]
[EventType "tourn"]
[EventCountry "KAZ"]
[SourceTitle "playchess.com"]
[Source "ChessBase"]
[SourceQuality "1"]
[TimeControl "5400+30"]

1. Nf3 {[%emt 0:00:00]} d5 {[%emt 0:00:00]} 2. d4 {[%emt 0:00:30]} Nf6 {[%emt 0:00:09]} 3. Bf4 {[%emt 0:00:24]} e6 {[%emt 0:01:12]} 4. e3 {[%emt 0:00:10]} Bd6 {[%emt 0:00:39]} 5. Bxd6 {[%emt 0:01:47]} cxd6 {[%emt 0:00:17]} 6. Nbd2 {[%emt 0:01:35]} O-O {[%emt 0:00:23]} 7. c4 {[%emt 0:01:33]} dxc4 {[%emt 0:03:45]} 8. Bxc4 {[%emt 0:01:30]} b6 {[%emt 0:01:54]} 9. O-O {[%emt 0:01:24]} Bb7 {[%emt 0:00:20]} 10. Rc1 {[%emt 0:01:45]} Nbd7 {[%emt 0:01:05]} 11. Bb5 {[%emt 0:01:04]} Rc8 {[%emt 0:00:15]} 12. Rxc8 {[%emt 0:05:15]} Qxc8 {[%emt 0:00:08]} 13. Qb1 {[%emt 0:01:03]} Qa8 {[%emt 0:03:03]} 14. Rc1 {[%emt 0:01:15]} Rc8 {[%emt 0:00:15]} 15. Ne1 {[%emt 0:00:28]} Rxc1 {[%emt 0:02:59]} 16. Qxc1 {[%emt 0:00:06]} Qc8 {[%emt 0:00:28]} 17. Qxc8+ {[%emt 0:02:02]} Bxc8 {[%emt 0:00:05]} 18. Nd3 {[%emt 0:01:23]} Kf8 {[%emt 0:00:17]} 19. Kf1 {[%emt 0:01:18]} Ke7 {[%emt 0:00:15]} 20. Ke2 {[%emt 0:00:18]} Bb7 {[%emt 0:01:20]} 21. f3 {[%emt 0:00:18]} a6 {[%emt 0:00:08]} 22. Bxd7 {[%emt 0:00:18]} Nxd7 {[%emt 0:00:07]} 23. Nc4 {[%emt 0:01:46]} a5 {[%emt 0:00:16]} 24. b3 {[%emt 0:01:06]} Ba6 {[%emt 0:00:10]} 25. Kd2 {[%emt 0:00:24]} d5 {[%emt 0:00:24]} 26. Nce5 {[%emt 0:00:22]} Bxd3 {[%emt 0:00:14]} 27. Nxd7 {[%emt 0:00:20]} Kxd7 {[%emt 0:00:15]} 28. Kxd3 {[%emt 0:00:03]} b5 {[%emt 0:00:51]} 29. a4 {[%emt 0:00:08]} bxa4 {[%emt 0:00:09]} 30. bxa4 {[%emt 0:00:04]} 1/2-1/2

[Event "IITU Masters 2019"]
[Site "Almaty"]
[Date "2019.02.21"]
[Round "2.2"]
[White "Tologontegin, Semetey"]
[Black "Rakhimzhan, Alen"]
[Result "1-0"]
[ECO "A20"]
[WhiteElo "2372"]
[BlackElo "2320"]
[Annotator "NA"]
[PlyCount "91"]
[EventDate "2019.02.20"]
[EventType "tourn"]
[EventCountry "KAZ"]
[SourceTitle "playchess.com"]
[Source "ChessBase"]
[SourceQuality "1"]
[TimeControl "5400+30"]

1. c4 {[%emt 0:03:35]} e5 {[%emt 0:00:00]} 2. d3 {[%emt 0:00:30]} Nf6 {[%emt 0:00:16]} 3. Nf3 {[%emt 0:00:30]} Nc6 {[%emt 0:00:30]} 4. a3 {[%emt 0:00:30]} a5 {[%emt 0:00:30]} 5. e3 {[%emt 0:00:30]} g6 {[%emt 0:00:30]} 6. b3 {[%emt 0:08:46]} Bg7 {[%emt 0:00:32]} 7. Bb2 {[%emt 0:00:13]} d6 {[%emt 0:00:10]} 8. d4 {[%emt 0:01:20]} exd4 {[%emt 0:06:17]} 9. Nxd4 {[%emt 0:00:13]} O-O {[%emt 0:00:52]} 10. Be2 {[%emt 0:01:14]} Nxd4 {[%emt 0:04:33]} 11. Bxd4 {[%emt 0:00:12]} Bd7 {[%emt 0:00:31]} 12. O-O {[%emt 0:01:16]} Bc6 {[%emt 0:00:36]} 13. Nc3 {[%emt 0:00:41]} Re8 {[%emt 0:03:34]} 14. Rc1 {[%emt 0:05:39]} Ne4 {[%emt 0:13:04]} 15. Bxg7 {[%emt 0:05:08]} Kxg7 {[%emt 0:00:11]} 16. Nd5 {[%emt 0:00:18]} Kg8 {[%emt 0:04:01]} 17. Bf3 {[%emt 0:04:45]} Nf6 {[%emt 0:14:02]} 18. Qd4 {[%emt 0:02:27]} Re5 {[%emt 0:16:07]} 19. Rfd1 {[%emt 0:01:19]} Rc8 {[%emt 0:03:25]} 20. g3 {[%emt 0:03:52]} Bxd5 {[%emt 0:12:24]} 21. cxd5 {[%emt 0:00:24]} Qe7 {[%emt 0:00:07]} 22. Bg2 {[%emt 0:04:45]} b6 {[%emt 0:00:19]} 23. Rd3 {[%emt 0:03:32]} Ne8 {[%emt 0:04:48]} 24. f4 {[%emt 0:01:09]} Rh5 {[%emt 0:00:05]} 25. Bf3 {[%emt 0:08:59]} Rh6 {[%emt 0:00:33]} 26. e4 {[%emt 0:12:57]} g5 {[%emt 0:02:28]} 27. f5 {[%emt 0:00:14]} g4 {[%emt 0:06:28]} 28. Bxg4 {[%emt 0:01:40]} Nf6 {[%emt 0:00:02]} 29. Bf3 {[%emt 0:00:24]} Nd7 {[%emt 0:00:06]} 30. Rdc3 {[%emt 0:01:20]} Ne5 {[%emt 0:00:12]} 31. Be2 {[%emt 0:01:25]} Kh8 {[%emt 0:00:51]} 32. Qe3 {[%emt 0:00:59]} Kg7 {[%emt 0:01:25]} 33. Qf4 {[%emt 0:01:15]} Qf6 {[%emt 0:06:25]} 34. Rxc7 {[%emt 0:01:46]} Rxc7 {[%emt 0:00:02]} 35. Rxc7 {[%emt 0:00:08]} Qd8 {[%emt 0:00:07]} 36. Qc1 {[%emt 0:03:11]} b5 {[%emt 0:00:46]} 37. h4 {[%emt 0:01:12]} Rf6 {[%emt 0:00:32]} 38. Kg2 {[%emt 0:02:21]} h6 {[%emt 0:00:39]} 39. g4 {[%emt 0:00:39]} Qa8 {[%emt 0:00:52]} 40. Rc8 {[%emt 0:09:05]} Qa7 {[%emt 0:00:13]} 41. g5 {[%emt 0:00:17]} Rxf5 {[%emt 0:00:03]} 42. exf5 {[%emt 0:00:11]} Qd4 {[%emt 0:00:05]} 43. gxh6+ {[%emt 0:02:09]} Kh7 {[%emt 0:00:08]} 44. Qg5 {[%emt 0:00:32]} Qe4+ {[%emt 0:00:16]} 45. Kf2 {[%emt 0:00:35]} Qd4+ {[%emt 0:01:07]} 46. Kf1 {[%emt 0:00:15]} 1-0

[Event "IITU Masters 2019"]
[Site "Almaty"]
[Date "2019.02.21"]
[Round "2.3"]
[White "Igambergenov, Alibek"]
[Black "Zhalmakhanov, Ramazan"]
[Result "0-1"]
[ECO "A37"]
[WhiteElo "2309"]
[BlackElo "2324"]
[Annotator "NA"]
[PlyCount "68"]
[EventDate "2019.02.20"]
[EventType "tourn"]
[EventCountry "KAZ"]
[SourceTitle "playchess.com"]
[Source "ChessBase"]
[SourceQuality "1"]
[TimeControl "5400+30"]

1. Nf3 {[%emt 0:00:00]} c5 {[%emt 0:00:00]} 2. c4 {[%emt 0:00:00]} Nc6 {[%emt 0:00:00]} 3. Nc3 {[%emt 0:00:11]} g6 {[%emt 0:00:01]} 4. g3 {[%emt 0:00:51]} Bg7 {[%emt 0:00:08]} 5. Bg2 {[%emt 0:00:04]} e6 {[%emt 0:00:10]} 6. O-O {[%emt 0:00:09]} Nge7 {[%emt 0:00:30]} 7. d3 {[%emt 0:00:54]} O-O {[%emt 0:00:11]} 8. a3 {[%emt 0:00:16]} d5 {[%emt 0:06:13]} 9. cxd5 {[%emt 0:01:19]} exd5 {[%emt 0:00:15]} 10. Bg5 {[%emt 0:00:40]} h6 {[%emt 0:03:40]} 11. Bf4 {[%emt 0:01:10]} g5 {[%emt 0:14:11]} 12. Bd2 {[%emt 0:01:17]} Be6 {[%emt 0:00:14]} 13. e4 {[%emt 0:07:23]} dxe4 {[%emt 0:15:28]} 14. Nxe4 {[%emt 0:01:46]} g4 {[%emt 0:05:44]} 15. Nh4 {[%emt 0:02:04]} b6 {[%emt 0:00:19]} 16. Bc3 {[%emt 0:02:55]} Nd4 {[%emt 0:02:47]} 17. Re1 {[%emt 0:08:14]} Rc8 {[%emt 0:05:20]} 18. Nd2 {[%emt 0:03:52]} h5 {[%emt 0:15:42]} 19. Rc1 {[%emt 0:38:33]} Nec6 {[%emt 0:01:49]} 20. h3 Ne5 {[%emt 0:02:36]} 21. hxg4 {[%emt 0:12:29]} Nxd3 {[%emt 0:10:04]} 22. gxh5 {[%emt 0:00:10]} Nxe1 {[%emt 0:00:48]} 23. Qxe1 {[%emt 0:00:05]} Re8 {[%emt 0:00:32]} 24. Qd1 {[%emt 0:06:44]} Qd7 {[%emt 0:01:47]} 25. Kh2 {[%emt 0:00:08]} Bg4 {[%emt 0:01:25]} 26. f3 {[%emt 0:00:05]} Bxh5 {[%emt 0:02:10]} 27. Bh3 {[%emt 0:00:06]} Qd8 {[%emt 0:04:57]} 28. Bxc8 {[%emt 0:01:42]} Re2+ {[%emt 0:01:30]} 29. Kh1 {[%emt 0:10:20]} Qxc8 {[%emt 0:01:44]} 30. g4 {[%emt 0:00:01]} Bxg4 {[%emt 0:02:12]} 31. Bxd4 {[%emt 0:01:27]} Bxf3+ {[%emt 0:00:42]} 32. Ndxf3 {[%emt 0:00:01]} Qh3+ {[%emt 0:00:11]} 33. Kg1 {[%emt 0:00:03]} Bxd4+ {[%emt 0:00:09]} 34. Qxd4 {[%emt 0:00:46]} cxd4 {[%emt 0:00:11]} 0-1

[Event "IITU Masters 2019"]
[Site "Almaty"]
[Date "2019.02.21"]
[Round "2.5"]
[White "Daurimbetov, A."]
[Black "Mezentsev, Ivan"]
[Result "1-0"]
[ECO "C52"]
[WhiteElo "2287"]
[BlackElo "2298"]
[Annotator "NA"]
[PlyCount "81"]
[EventDate "2019.02.20"]
[EventType "tourn"]
[EventCountry "KAZ"]
[SourceTitle "playchess.com"]
[Source "ChessBase"]
[SourceQuality "1"]
[TimeControl "5400+30"]

1. e4 {[%emt 0:03:07]} e5 {[%emt 0:00:00]} 2. Nf3 {[%emt 0:00:08]} Nc6 {[%emt 0:00:29]} 3. Bc4 {[%emt 0:00:06]} Bc5 {[%emt 0:00:12]} 4. b4 {[%emt 0:00:05]} Bxb4 {[%emt 0:01:50]} 5. c3 {[%emt 0:00:02]} Ba5 {[%emt 0:00:30]} 6. d4 {[%emt 0:00:06]} d6 {[%emt 0:00:46]} 7. Qb3 {[%emt 0:00:15]} Qd7 {[%emt 0:06:10]} 8. dxe5 {[%emt 0:05:00]} Bb6 {[%emt 0:06:47]} 9. exd6 {[%emt 0:01:48]} Na5 {[%emt 0:12:12]} 10. Qb5 {[%emt 0:07:08]} Nxc4 {[%emt 0:07:25]} 11. Qxc4 {[%emt 0:00:06]} cxd6 {[%emt 0:05:21]} 12. Ba3 {[%emt 0:01:37]} Nf6 {[%emt 0:01:30]} 13. O-O {[%emt 0:01:13]} Qe6 {[%emt 0:03:52]} 14. Nbd2 {[%emt 0:00:30]} Bc5 {[%emt 0:01:55]} 15. e5 {[%emt 0:11:42]} Bxa3 {[%emt 0:04:29]} 16. Qa4+ {[%emt 0:04:22]} Bd7 {[%emt 0:02:58]} 17. Qxa3 {[%emt 0:00:02]} dxe5 {[%emt 0:01:47]} 18. Rfe1 {[%emt 0:01:24]} Qe7 {[%emt 0:02:00]} 19. Rxe5 {[%emt 0:01:17]} Be6 {[%emt 0:00:03]} 20. Qa4+ {[%emt 0:00:53]} Qd7 {[%emt 0:00:39]} 21. Qb4 {[%emt 0:04:59]} O-O-O {[%emt 0:09:00]} 22. Ra5 {[%emt 0:06:51]} b6 {[%emt 0:04:47]} 23. Ra3 {[%emt 0:10:58]} Nd5 {[%emt 0:01:28]} 24. Qe4 {[%emt 0:05:14]} Kb8 {[%emt 0:03:25]} 25. Ne5 {[%emt 0:12:22]} Qc7 {[%emt 0:00:43]} 26. Ndf3 {[%emt 0:04:16]} Bc8 {[%emt 0:09:32]} 27. Nd4 {[%emt 0:00:39]} Bb7 {[%emt 0:00:14]} 28. Rxa7 {[%emt 0:02:06]} Qxc3 {[%emt 0:08:56]} 29. Rb1 {[%emt 0:10:41]} Qc5 {[%emt 0:01:57]} 30. Nb5 {[%emt 0:02:18]} f5 {[%emt 0:01:26]} 31. Qa4 {[%emt 0:00:21]} Nc7 {[%emt 0:01:57]} 32. Rxb7+ {[%emt 0:01:06]} Kxb7 {[%emt 0:00:04]} 33. Qa7+ {[%emt 0:00:25]} Kc8 {[%emt 0:00:00]} 34. Nxc7 {[%emt 0:01:06]} Qxe5 {[%emt 0:00:51]} 35. Na8 {[%emt 0:00:32]} Rd2 {[%emt 0:01:32]} 36. Nxb6+ {[%emt 0:01:15]} Kd8 {[%emt 0:00:03]} 37. Nc4 {[%emt 0:00:15]} Rb2 {[%emt 0:01:04]} 38. Nxb2 {[%emt 0:00:20]} Re8 {[%emt 0:00:15]} 39. Nd3 {[%emt 0:00:12]} Qc7 {[%emt 0:00:35]} 40. Rb8+ {[%emt 0:00:17]} Kd7 {[%emt 0:00:08]} 41. Qxc7+ 1-0

[Event "IITU Masters 2019"]
[Site "Almaty"]
[Date "2019.02.22"]
[Round "3.1"]
[White "Mezentsev, Ivan"]
[Black "Markov, Mikhail"]
[Result "1/2-1/2"]
[ECO "B43"]
[WhiteElo "2298"]
[BlackElo "2368"]
[Annotator "NA"]
[PlyCount "134"]
[EventDate "2019.02.20"]
[EventType "tourn"]
[EventCountry "KAZ"]
[SourceTitle "playchess.com"]
[Source "ChessBase"]
[SourceQuality "1"]
[TimeControl "5400+30"]

1. e4 {[%emt 0:00:00]} c5 {[%emt 0:05:23]} 2. Nf3 {[%emt 0:00:12]} e6 {[%emt 0:01:21]} 3. Nc3 {[%emt 0:01:42]} a6 {[%emt 0:00:14]} 4. d4 {[%emt 0:00:53]} cxd4 {[%emt 0:00:05]} 5. Nxd4 {[%emt 0:00:05]} Qc7 {[%emt 0:00:04]} 6. a3 {[%emt 0:09:09]} b5 {[%emt 0:03:48]} 7. Bd3 {[%emt 0:04:54]} Nf6 {[%emt 0:01:54]} 8. Nb3 {[%emt 0:05:11]} Bb7 {[%emt 0:04:04]} 9. Qe2 {[%emt 0:06:33]} Nc6 {[%emt 0:09:11]} 10. Be3 {[%emt 0:09:59]} Ne5 {[%emt 0:01:51]} 11. f4 {[%emt 0:02:40]} Nc4 {[%emt 0:00:27]} 12. Bxc4 {[%emt 0:09:01]} bxc4 {[%emt 0:04:07]} 13. Nd2 {[%emt 0:00:09]} Rc8 {[%emt 0:02:45]} 14. O-O {[%emt 0:01:07]} Bc5 {[%emt 0:10:24]} 15. Kh1 {[%emt 0:10:41]} Bxe3 {[%emt 0:06:30]} 16. Qxe3 {[%emt 0:01:03]} d6 {[%emt 0:00:17]} 17. e5 {[%emt 0:06:58]} Nd5 {[%emt 0:09:55]} 18. Qg3 {[%emt 0:00:38]} O-O {[%emt 0:05:35]} 19. Nce4 {[%emt 0:00:48]} dxe5 {[%emt 0:00:10]} 20. fxe5 {[%emt 0:00:42]} c3 {[%emt 0:01:56]} 21. bxc3 {[%emt 0:00:37]} Nxc3 {[%emt 0:00:23]} 22. Nf6+ {[%emt 0:05:41]} Kh8 {[%emt 0:02:48]} 23. Nh5 {[%emt 0:00:54]} f5 {[%emt 0:03:37]} 24. exf6 {[%emt 0:03:32]} gxf6 {[%emt 0:01:26]} 25. Nxf6 {[%emt 0:02:13]} Qxg3 {[%emt 0:04:26]} 26. hxg3 {[%emt 0:00:06]} Ne2 {[%emt 0:02:24]} 27. Nh5 {[%emt 0:03:41]} Rg8 {[%emt 0:04:30]} 28. Rf7 {[%emt 0:01:03]} Rg5 {[%emt 0:01:14]} 29. Nf6 {[%emt 0:03:51]} Rg7 {[%emt 0:00:05]} 30. Rxg7 {[%emt 0:00:46]} Kxg7 {[%emt 0:00:02]} 31. Rb1 {[%emt 0:06:20]} Kxf6 {[%emt 0:02:55]} 32. Rxb7 {[%emt 0:00:09]} Rxc2 {[%emt 0:00:12]} 33. Nf3 {[%emt 0:00:50]} Nxg3+ {[%emt 0:00:12]} 34. Kh2 {[%emt 0:00:03]} Nf1+ {[%emt 0:01:03]} 35. Kh3 {[%emt 0:00:40]} Ne3 {[%emt 0:00:09]} 36. Rxh7 {[%emt 0:00:33]} Nxg2 {[%emt 0:00:35]} 37. Ra7 {[%emt 0:00:31]} Nf4+ {[%emt 0:02:33]} 38. Kg4 {[%emt 0:00:16]} Ng6 {[%emt 0:01:13]} 39. Rxa6 {[%emt 0:00:22]} Rg2+ {[%emt 0:00:08]} 40. Kh3 {[%emt 0:00:46]} Nf4+ {[%emt 0:00:06]} 41. Kh4 {[%emt 0:00:05]} Ne2 {[%emt 0:02:22]} 42. Ng5 {[%emt 0:02:06]} Kf5 {[%emt 0:00:18]} 43. Ra5+ {[%emt 0:01:48]} e5 {[%emt 0:01:36]} 44. Nf3 {[%emt 0:01:48]} Kf4 {[%emt 0:00:26]} 45. Rxe5 {[%emt 0:00:22]} Nd4 {[%emt 0:00:34]} 46. Re8 {[%emt 0:00:41]} Nf5+ {[%emt 0:01:19]} 47. Kh3 {[%emt 0:00:32]} Kxf3 {[%emt 0:00:13]} 48. Rf8 {[%emt 0:00:21]} Rg5 {[%emt 0:00:04]} 49. Kh2 {[%emt 0:00:06]} Kf2 {[%emt 0:00:31]} 50. Kh3 {[%emt 0:00:26]} Kf3 {[%emt 0:00:21]} 51. Kh2 {[%emt 0:00:06]} Ke3 {[%emt 0:01:14]} 52. Kh3 {[%emt 0:01:03]} Rg3+ {[%emt 0:00:43]} 53. Kh2 {[%emt 0:00:06]} Rf3 {[%emt 0:00:06]} 54. Rc8 {[%emt 0:00:48]} Rf4 {[%emt 0:00:14]} 55. Kg2 {[%emt 0:00:39]} Rg4+ {[%emt 0:00:08]} 56. Kh3 {[%emt 0:00:36]} Rg3+ {[%emt 0:00:06]} 57. Kh2 {[%emt 0:00:03]} Rg5 {[%emt 0:00:04]} 58. Rb8 {[%emt 0:01:24]} Nd4 {[%emt 0:00:41]} 59. a4 {[%emt 0:00:24]} Ne2 {[%emt 0:00:49]} 60. Kh3 {[%emt 0:00:21]} Ng3 {[%emt 0:02:38]} 61. Kh4 {[%emt 0:00:26]} Ne4 {[%emt 0:00:23]} 62. a5 {[%emt 0:00:43]} Rg6 {[%emt 0:00:58]} 63. Rb6 {[%emt 0:00:20]} Rg8 {[%emt 0:00:31]} 64. Rb7 {[%emt 0:00:18]} Nd6 {[%emt 0:00:16]} 65. Rb6 {[%emt 0:00:42]} Kf4 {[%emt 0:00:49]} 66. Rb4+ {[%emt 0:00:33]} Ne4 {[%emt 0:00:35]} 67. Kh5 {[%emt 0:00:13]} Kf3 1/2-1/2